Cogmind - Beta 13 X2 @@@ ROGUE MODE // 2024.01.17 @ 03:32:16 Player: cptwinky Result: Destroyed by P-80 Master with Gamma Rifle Performance ------------- Evolutions (9) 4500 Regions Visited (26) 5200 Robots Destroyed (553) 2765 Value Destroyed (29216) 29216 Prototype IDs (46) 920 Alien Tech Used (3) 600 Bonus (23360) 23360 TOTAL SCORE: 66561 Bonus ------- Triggered High Security 1000 High Alert Combat Kills 13862 Follower Combat Kills 2346 Entered Garrisons 1200 Used RIF Installer 4500 Met Data Miner 300 Met Zhirov 300 Scanned by Researcher 500 Friendly Fire -648 Cogmind --------- Core Integrity 0/1600 Matter 300/300 Energy 100/100 System Corruption 65% Temperature Cool (2) Movement Core (50) Location -1/Access Parts ------- > --- POWER (3) -------- (None) > --- PROPULSION (6) --- (None) > --- UTILITY (13) ----- Relay Coupler [NC] (1) > --- WEAPON (3) ------- (None) > --- INVENTORY (5) ---- (None) Peak State ------------ > --- POWER ------------ Reinforced Fission Core Micro Antimatter Reactor Reinforced Quantum Reactor > --- PROPULSION ------- Biometal Heavy Treads Biometal Heavy Treads Advanced Heavy Siege Treads > --- UTILITY ---------- Advanced Heat Sink Advanced Heat Sink Huge Storage Unit Advanced Energy Well Advanced Targeting Computer Advanced Target Analyzer Heavy Servo Lattice Advanced Weapon Cycler Advanced Focal Shield Advanced Shield Generator Advanced Hacking Suite Relay Coupler [NC] Relay Coupler [Sentry] > --- WEAPON ----------- Enhanced Nova Cannon Enhanced Nova Cannon Enhanced Nova Cannon > --- INVENTORY -------- Biometal Heavy Treads Biometal Heavy Treads Biometal Heavy Treads Advanced Heat Sink Matter Compressor Heavy Servo Lattice Improved Core Shielding Relay Coupler [Grunt] Relay Coupler [Specialist] Relay Coupler [Behemoth] Long-range Tractor Beam Transdimensional Reconstructor Phase Gun HERF Cannon HERF Cannon Fusion Bomb Launcher Improved Datajack Advanced Remote Datajack Advanced Remote Datajack Advanced Remote Datajack Advanced Remote Datajack [Rating: 189] Favorites ----------- Power F-cell Engine Engine F-cell Engine Power Core Reinforced Fission Core Reactor Particle Reactor Propulsion Improved Heavy Treads Treads Improved Heavy Treads Leg Aluminum Leg Wheel Centrium Wheel Utility Advanced Targeting Computer Device Advanced Weapon Cycler Storage Huge Storage Unit Processor Advanced Targeting Computer Hackware Relay Coupler [Sentry] Protection Improved Medium Armor Plating Weapon Precision Assault Rifle Energy Gun EM Pulse Gun Energy Cannon Advanced Beam Cannon Ballistic Gun Precision Assault Rifle Ballistic Cannon Enhanced Gauss Cannon Launcher Heavy Missile Launcher Special Weapon Remote Datajack Impact Weapon Makeshift Hammer Slashing Weapon Makeshift Sword Special Melee Weapon Improved Datajack Build | -11 -10 -10 -8 -8 -7 -7 -7 -7 -7 -7 -6 -6 -6 -6 -6 -5 -5 -5 -5 -4 -4 -4 -3 -3 -2 -1 ------- Run | Yrd Mat Sub Mat Gar Fac Gar Fac Low Low Dat Pro Fac Gar Fac Gar Fac Upp Upp Zhi Pro Fac Gar Res Gar Res Acc Slots Evolved 18 | . . . 4 . 2 . . . . . . 2 . . . 2 . . . . 2 . 2 . 2 2 Power 2 | . . . . . . . . . . . . 1 . . . . . . . . . . . . 1 . Propulsion 4 | . . . 1 . . . . . . . . 1 . . . . . . . . 2 . . . . . Utility 11 | . . . 2 . 2 . . . . . . . . . . 2 . . . . . . 2 . 1 2 Weapon 1 | . . . 1 . . . . . . . . . . . . . . . . . . . . . . . Parts Attached 598 | 2 9 30 32 16 18 23 42 7 8 1 9 12 38 8 46 35 6 15 6 5 36 42 8 29 43 72 Power 41 | . . 2 2 1 2 3 1 1 . . 1 1 3 1 3 . . 1 . . 2 4 2 1 4 6 Engine 21 | . . 2 2 1 2 2 1 1 . . 1 1 3 1 2 . . 1 . . 1 . . . . . Core 8 | . . . . . . 1 . . . . . . . . . . . . . . 1 2 1 1 1 1 Reactor 12 | . . . . . . . . . . . . . . . 1 . . . . . . 2 1 . 3 5 Propulsion 60 | 2 . 5 3 1 . 2 4 . 1 . . 2 4 . 2 1 . . 1 2 5 8 . 2 11 4 Treads 59 | 2 . 5 3 1 . 2 4 . 1 . . 2 4 . 2 1 . . 1 1 5 8 . 2 11 4 Leg . | . . . . . . . . . . . . . . . . . . . . . . . . . . . Wheel 1 | . . . . . . . . . . . . . . . . . . . . 1 . . . . . . Hover . | . . . . . . . . . . . . . . . . . . . . . . . . . . . Flight . | . . . . . . . . . . . . . . . . . . . . . . . . . . . Utility 207 | . 3 4 11 6 4 5 15 2 3 . 5 5 12 3 11 15 2 4 2 . 17 18 3 9 13 35 Device 94 | . 1 . 2 2 1 2 2 1 3 . 3 2 9 2 3 5 2 3 . . 12 12 1 4 2 20 Storage 9 | . 1 1 . . . . 2 . . . . . . . . 2 . . 1 . . . . . 1 1 Processor 11 | . . . 2 . . . 1 . . . . . 1 . . 1 . . . . . . . 1 3 2 Hackware 36 | . . . . 1 2 2 6 . . . 2 . . 1 4 5 . . . . . 2 2 4 2 3 Protection 57 | . 1 3 7 3 1 1 4 1 . . . 3 2 . 4 2 . 1 1 . 5 4 . . 5 9 Artifact . | . . . . . . . . . . . . . . . . . . . . . . . . . . . Weapon 290 | . 6 19 16 8 12 13 22 4 4 1 3 4 19 4 30 19 4 10 3 3 12 12 3 17 15 27 Energy Gun 8 | . 3 1 . . . . 1 . . . . . . . . . . . . . . . . . . 3 Energy Cannon 49 | . . 2 5 1 3 3 1 . . . . 1 4 . 5 3 1 . 1 . 1 2 1 1 6 8 Ballistic Gun 105 | . 2 10 6 4 5 6 8 1 3 . 2 2 9 3 11 9 2 7 . 2 6 2 . 1 1 3 Ballistic Cannon 22 | . . . . . . . 4 . . . . . . . . . . . . . . 5 1 8 1 3 Launcher 36 | . . 1 2 2 1 1 2 1 . 1 . . 2 . 3 2 1 3 1 1 2 2 . . 4 4 Special Weapon 37 | . 1 1 . . 1 2 3 1 . . 1 1 1 1 6 3 . . . . . 1 1 6 3 4 Impact Weapon 14 | . . . . . . . 1 1 . . . . 3 . 5 1 . . . . 2 . . 1 . . Slashing Weapon 8 | . . 3 3 1 1 . . . . . . . . . . . . . . . . . . . . . Piercing Weapon . | . . . . . . . . . . . . . . . . . . . . . . . . . . . Special Melee Weapon 11 | . . 1 . . 1 1 2 . 1 . . . . . . 1 . . 1 . 1 . . . . 2 Unidentified Prototypes 10 | . . . . . 1 . 1 . . . 1 1 . 1 . . . . 3 . . . . . . 2 Corrupted Parts 1 | . . 1 . . . . . . . . . . . . . . . . . . . . . . . . System Corruption 2 | . . 2 . . . . . . . . . . . . . . . . . . . . . . . . Parts Lost 98 | . . 2 . 1 1 8 . . . . . . 3 . 3 . . 2 . . 5 20 . 1 11 41 Power 11 | . . . . 1 . . . . . . . . 1 . . . . . . . . 3 . . 1 5 Propulsion 17 | . . 2 . . . 2 . . . . . . 1 . . . . . . . 1 6 . . . 5 Utility 49 | . . . . . 1 4 . . . . . . . . 3 . . 2 . . 2 6 . 1 8 22 Weapon 21 | . . . . . . 2 . . . . . . 1 . . . . . . . 2 5 . . 2 9 Highest Loss Streak 21 | . . 1 . 1 1 4 . . . . . . 3 . 1 . . 1 . . 2 11 . 1 4 21 To Critical Strikes 1 | . . 1 . . . . . . . . . . . . . . . . . . . . . . . . Average Slot Usage (%) 87 | . 97 89 96 99 100 89 91 92 91 92 92 92 92 86 87 82 82 80 78 81 82 77 80 84 82 81 Engine 6 | . 14 14 9 8 7 4 7 7 7 7 7 12 13 13 10 5 5 5 5 5 4 2 . . . . Reactor 2 | . . . . . . . . . . . . . . . 2 5 5 5 5 5 3 3 4 4 6 8 Treads 17 | . 28 28 26 27 23 19 14 15 15 15 15 19 19 13 15 12 11 11 11 10 14 15 14 14 14 11 Device 7 | . . . . 2 7 6 2 1 7 7 6 4 6 5 4 5 10 11 11 11 18 19 19 19 16 19 Storage 6 | . 14 3 9 9 7 7 7 7 7 7 7 6 6 6 6 5 5 5 7 11 10 6 4 4 4 4 Processor 9 | . . . 6 9 7 7 15 15 15 15 15 13 15 13 13 16 17 9 5 5 5 5 4 7 10 8 Hackware 5 | . . . . 4 13 11 11 13 7 7 10 13 6 6 4 4 . . . . . 1 14 14 12 13 Protection 7 | . 11 13 17 11 8 5 6 7 7 7 3 1 4 6 8 4 5 10 11 11 6 2 . . . 3 Energy Gun 1 | . 25 2 . . . . . . . . . . . . . . . . . . . . . . . . Energy Cannon 2 | . . 6 4 3 7 10 4 . . . . . 1 . . . . . 1 . . 2 . 1 3 7 Ballistic Gun 15 | . . 18 21 20 13 10 16 22 22 15 22 20 17 19 17 16 16 16 11 16 14 6 4 4 2 . Naked Turns . | . . . . . . . . . . . . . . . . . . . . . . . . . . . Heaviest Build 221 | 14 30 37 63 55 55 52 77 78 78 78 75 83 92 89 108 152 154 168 173 173 171 156 157 162 190 221 Greatest Support 230 | 40 40 40 60 60 60 95 103 95 95 95 95 123 150 150 150 150 150 150 150 150 225 225 225 225 230 230 Greatest Overweight (x) 2 | . . . 1 . . 1 . . . . . 1 1 . . 1 1 1 1 2 1 2 . . 1 1 Average Overweight (x) . | . . . . . . . . . . . . . . . . . . . 1 1 . . . . . . Largest Inventory Capacity 25 | 8 15 15 15 15 15 15 20 20 20 20 20 20 20 20 20 25 25 25 25 25 25 25 25 25 25 25 Average Capacity 19 | 8 14 7 15 15 15 15 19 20 20 20 20 20 20 20 20 21 25 25 25 25 25 25 25 25 25 23 Most Carried 25 | 6 14 15 15 15 15 15 20 20 20 20 20 20 20 20 20 23 25 25 25 25 25 25 25 25 25 25 Average Carried 19 | 6 10 7 14 14 14 14 18 19 19 20 19 19 19 19 19 20 24 24 24 24 24 23 24 24 24 20 Final Capacity 25 | 8 15 15 15 15 15 15 20 20 20 20 20 20 20 20 20 25 25 25 25 25 25 25 25 25 25 5 Final Carried 25 | 6 14 15 15 15 15 15 20 20 20 20 20 20 20 19 20 22 25 25 25 25 25 25 25 25 23 . Class Distribution -------------------- 20% | Gunner 13% | Tank 9% | Botlord-Gunner 9% | Scavenger-Tank 8% | Scavenger-Skirmisher 8% | Scavenger-Gunner 7% | Mutant 6% | Subdweller-Mutant 6% | Bothacker-Gunner Dominant Class ---------------- Mutant | -10/Materials Subdweller-Mutant | -10/Subcaves Scavenger-Tank | -8/Materials Tank | -8/Garrison Gunner | -7/Factory Scavenger-Gunner | -7/Garrison Gunner | -7/Factory Gunner | -7/Lower Caves Scavenger-Skirmisher | -7/Lower Caves Scavenger-Mutant | -7/Data Miner Scavenger-Skirmisher | -6/Proximity Caves Scavenger-Skirmisher | -6/Factory Scavenger-Gunner | -6/Garrison Bothacker-Gunner | -6/Factory Bothacker-Gunner | -6/Garrison Gunner | -5/Factory Gunner | -5/Upper Caves Scavenger-Tank | -5/Upper Caves Scavenger-Mutant | -5/Zhirov Tank | -4/Proximity Caves Scavenger-Tank | -4/Factory Tank | -4/Garrison Botlord-Gunner | -3/Research Botlord-Gunner | -3/Garrison Botlord-Gunner | -2/Research Botlord-Gunner | -1/Access Resources | -11 -10 -10 -8 -8 -7 -7 -7 -7 -7 -7 -6 -6 -6 -6 -6 -5 -5 -5 -5 -4 -4 -4 -3 -3 -2 -1 ----------- Run | Yrd Mat Sub Mat Gar Fac Gar Fac Low Low Dat Pro Fac Gar Fac Gar Fac Upp Upp Zhi Pro Fac Gar Res Gar Res Acc Matter Collected 19241 | 200 264 686 1053 573 148 713 686 307 250 . 191 178 1409 1 1170 1596 330 428 60 172 2168 1451 223 1386 1659 1939 Remotely 3320 | . . . . . . . . . . . . . 447 . . 682 . . . . 411 678 104 . 228 770 Salvage Created 28680 | . 561 693 1463 890 320 945 743 428 390 . 166 299 2169 . 1452 1864 173 511 114 171 3407 2161 46 722 4919 4073 Parts 1243 | . 30 57 78 44 28 24 40 19 17 . 5 13 63 . 77 80 5 17 1 2 187 95 . 25 200 136 Haulers Intercepted 11 | . 2 . 4 1 . . 4 . . . . . . . . . . . . . . . . . . . Recyclers Shooed 5 | . 1 . . . . . 2 . . . . . . . . . . . . . . . . . 2 . Parts Field Recycled 25 | . . . 25 . . . . . . . . . . . . . . . . . . . . . . . Retrieved Matter 110 | . . . 110 . . . . . . . . . . . . . . . . . . . . . . . Parts Self-Destructed 56 | . . 10 . . . . . 12 6 . 5 . . . . . 4 16 1 2 . . . . . . Prevented 2 | . . . . . . . . 1 . . . . . . . . 1 . . . . . . . . . Kills | -11 -10 -10 -8 -8 -7 -7 -7 -7 -7 -7 -6 -6 -6 -6 -6 -5 -5 -5 -5 -4 -4 -4 -3 -3 -2 -1 ------- Run | Yrd Mat Sub Mat Gar Fac Gar Fac Low Low Dat Pro Fac Gar Fac Gar Fac Upp Upp Zhi Pro Fac Gar Res Gar Res Acc Combat Hostiles Destroyed 479 | . 6 16 33 22 7 22 9 7 6 . 5 5 27 . 33 31 2 13 . 4 49 27 3 18 59 75 Melee 2 | . . . . . . . . . . . . . . . . . . . . . . . . . 1 1 Guns 236 | . 4 12 24 14 3 12 2 7 3 . . 5 17 . 25 26 2 5 . 2 41 15 1 4 6 6 Cannons 110 | . . 4 1 2 2 10 4 . . . . . 4 . 2 . . . . . 1 12 2 14 17 35 AOE 103 | . 1 . 8 6 2 . 3 . 3 . 5 . 6 . 6 5 . 8 . 2 7 . . . 12 29 Classes Destroyed 28 | . 7 4 3 2 . . 1 1 1 . . . 1 . 1 1 1 . . . . 1 . . 2 2 Worker 17 | . 1 . 1 . 1 . 3 . . . . . . . . 3 . . . . 2 . . . 4 2 Builder 14 | . . . . . . . . . . . . . . . . 1 . . . . 2 . . . 9 2 Tunneler 6 | . 1 . . . . . . . . . . . . . . . . . . . . . . . 3 2 Hauler 11 | . 2 . 4 1 . . 4 . . . . . . . . . . . . . . . . . . . Recycler 9 | . 1 . . . 1 . 3 . . . . . . . . . . . . . 1 . . . . 3 Minesweeper 1 | . . . . . . . . . . . . . . . . . 1 . . . . . . . . . Mechanic 8 | . . . . . . . 1 . . . . . . . . . . . . . 2 . . . 1 4 Operator 5 | . 2 . 1 . . . . . . . . . . . . . . . . . . . . . . 2 Watcher 18 | . 2 . 5 . 1 . 1 . . . . . . . 1 . . . . . 2 . . . 2 4 Swarmer 77 | . . 2 8 7 3 7 1 . 4 . . . 3 . 10 5 . 1 . . 11 1 1 7 . 6 Cutter 5 | . . . . . . . . . . . . . . . . . . . . . . 4 . . 1 . Saboteur 6 | . . . . . . . . . . . . . . . 1 . . . . . . . . . 4 1 Grunt 216 | . 6 1 14 8 . 7 7 1 1 . 5 3 18 . 15 18 1 9 . 3 19 12 1 8 27 32 Brawler 22 | . . . 1 . . 4 . . . . . . . . . 1 . 1 . 1 1 1 . . 6 6 Duelist 17 | . . . . . . 1 . 2 . . . . 1 . . 2 . . . . 3 . . . 4 4 Protector 4 | . . . . . . . . . . . . . . . . . . . . . . . . . 2 2 Sentry 43 | . . . 9 4 1 2 . 1 1 . . 1 2 . 3 2 . 1 . . 3 7 1 1 3 1 Hunter 17 | . . . 1 . 2 1 . . . . . . . . . . . . . . 3 . . . 5 5 Programmer 49 | . . . . 2 1 . 1 . . . . 1 2 . 3 3 1 1 . . 9 . . 2 7 16 Heavy 1 | . . . . . . . . . . . . . . . . . . . . . . . . . 1 . Behemoth 4 | . . . . . . . . . . . . . 1 . 1 . . . . . . 2 . . . . Investigator 1 | . . . . . . . . . . . . . . . . . . . . . . . . . . 1 Executioner 2 | . . . . . . . . . . . . . . . . . . . . . . . . . . 2 Cobbler 1 | . . 1 . . . . . . . . . . . . . . . . . . . . . . . . Subdweller 13 | . . 13 . . . . . . . . . . . . . . . . . . . . . . . . Zionite 1 | . . 1 . . . . . . . . . . . . . . . . . . . . . . . . Decomposer 1 | . . . . . . . . . . . . . . . . . 1 . . . . . . . . . Samaritan 3 | . . . . . . . . . 3 . . . . . . . . . . . . . . . . . Thug 2 | . . . . . . . . 2 . . . . . . . . . . . . . . . . . . Butcher 1 | . . . . 1 . . . . . . . . . . . . . . . . . . . . . . Mutant 2 | . . . . . . . . 1 1 . . . . . . . . . . . . . . . . . Best Kill Streak 22 | . 4 2 8 5 3 4 4 4 3 . 4 3 6 . 4 5 1 4 . 4 9 8 1 3 20 22 Combat Bots Only 17 | . 2 2 7 5 2 4 3 4 3 . 4 3 6 . 4 5 1 4 . 4 8 8 1 3 14 17 Max Kills in Single Turn 9 | . 2 1 4 3 2 1 3 1 2 . 2 1 2 . 4 5 1 3 . 2 4 2 1 2 9 4 Gunslinging 1 | . . . 1 . . . . . . . . . . . . 1 . . . . 1 1 . . . . Exploded 5 | . 1 . 4 3 1 . 2 . 2 . 2 . 2 . 4 5 . 3 . 2 4 . . . 3 3 Melee 1 | . . . . . . . . . . . . . . . . . . . . . . . . . 1 1 Uniques/NPCs Destroyed . | . . . . . . . . . . . . . . . . . . . . . . . . . . . Combat | -11 -10 -10 -8 -8 -7 -7 -7 -7 -7 -7 -6 -6 -6 -6 -6 -5 -5 -5 -5 -4 -4 -4 -3 -3 -2 -1 -------- Run | Yrd Mat Sub Mat Gar Fac Gar Fac Low Low Dat Pro Fac Gar Fac Gar Fac Upp Upp Zhi Pro Fac Gar Res Gar Res Acc Hostile Shots Fired 2847 | . 32 65 136 105 68 137 41 29 25 . 13 55 176 17 138 85 7 37 . 18 258 310 40 97 227 731 Missed 808 | . 10 10 33 39 23 44 11 5 11 . 4 18 52 5 36 22 3 6 . 7 59 50 11 25 77 247 Damage Taken 35654 | . 301 1182 1527 1017 387 1498 462 602 152 . 175 513 1613 277 1643 1250 76 629 . 103 2386 4803 369 843 4499 9347 Core 3444 | . 51 193 79 125 41 155 65 64 . . 42 23 150 38 156 53 . 12 . 10 101 246 11 74 263 1492 Absorbed by Shields 5697 | . . . . . 62 . . . . . . . 329 . 181 . . 90 . 104 1418 575 315 716 12 1895 Reduced by Siege Mode 1277 | . . . . . . . . . . . . . 103 . 69 46 . . . . 149 375 . 51 48 436 Redirected to Shielding 205 | . 11 17 . . . . . . . . . . . . . . . . . . . . . . 130 47 Ignored by Resistances 1716 | . . . . . . . . . . . . . . . . . . . . . . 1133 . . . 583 Regen/Repaired (Parts) 1487 | . . . 166 . . . 257 . . . . 267 . . . 672 . . . . 125 . . . . . Core Remaining (%) 66 | 100 . 2 . 62 . . . . . . 47 . . . 56 . . . . 92 . 69 . 93 81 . Volleys Fired 1423 | . 59 102 98 44 17 81 37 21 16 . 7 16 119 5 82 96 18 20 11 8 112 134 17 56 107 140 Largest 3 | . 2 2 3 3 3 3 3 3 3 . 3 3 3 3 3 3 3 3 1 3 3 3 3 3 3 3 Hottest 360 | . 100 110 140 119 164 171 171 84 89 . 89 89 94 93 100 110 103 113 30 103 113 180 147 212 212 360 Shots Fired 3119 | . 93 174 237 122 44 178 89 59 42 . 13 44 237 9 180 232 32 42 11 16 329 314 43 134 167 278 Gun 2054 | . 82 125 202 106 22 75 47 58 39 . 9 43 165 6 147 215 21 33 . 12 325 192 13 42 39 36 Cannon 890 | . . 41 28 13 19 97 35 . . . . . 67 . 21 5 11 . 11 . 2 118 27 82 100 213 Launcher 93 | . . 1 7 3 2 . 4 . 3 . 3 . 5 . 2 1 . 9 . 4 2 2 . . 23 22 Special 82 | . 11 7 . . 1 6 3 1 . . 1 1 . 3 10 11 . . . . . 2 3 10 5 7 Kinetic 2263 | . 10 124 209 109 24 75 48 58 39 . 9 43 165 6 147 215 21 33 . 12 325 236 39 120 101 95 Thermal 596 | . 11 50 28 13 19 97 34 . . . . . 67 . 21 5 . . 11 . 2 74 1 4 30 129 Explosive 57 | . . . . . . . 4 . 3 . 3 . 5 . 2 1 . 9 . 4 2 2 . . . 22 Electromagnetic 139 | . 72 . . . . . . . . . . . . . . . 11 . . . . . . . 31 25 Robot Hit Streak 75 | . 15 42 19 17 10 23 21 24 32 . 13 9 31 3 28 18 10 19 14 15 29 35 13 18 17 75 Robot Miss Streak 6 | . 4 2 6 4 2 6 3 1 1 . 1 1 2 2 1 3 1 1 . 2 4 2 2 2 3 5 Penetration Max 4 | . . . . . . 1 . . . . . . . . . 4 . 1 . . 4 2 . 1 2 2 Secondary Targets 53 | . 1 . 1 4 . . . . 1 . . 2 4 . 6 8 . 1 . . 7 6 . . . 12 Max Gunslinging Chain 2 | . 1 . 1 1 . . . . 1 . . 1 1 . 1 1 . 1 . . 1 2 . . . 1 Shots Hit Robots 2245 | . 47 125 141 86 36 112 66 47 35 1 9 31 191 6 126 169 20 35 14 10 240 254 31 90 111 212 Core Hits 1305 | . 22 43 68 38 19 65 38 17 19 . 6 14 91 . 59 86 9 38 2 12 134 86 8 34 195 202 Critical Kills 66 | . . 1 4 1 . 1 . 1 . . . . . . 5 6 . 1 . 1 25 7 . 3 6 4 Critical Parts Destroyed 81 | . . . . . . . . . . . . 1 1 . . 24 2 1 . 1 34 15 . . 1 1 Critical Strikes 198 | . . 1 4 1 . 1 . 2 . . . 1 1 . 5 32 2 3 . 2 59 30 3 20 20 11 Meltdown 6 | . . . . . . . . . . . . . . . . . . . . . . . . . 2 4 Destroy 152 | . . 1 4 1 . 1 . 2 . . . 1 1 . 5 32 2 3 . 2 59 29 . 3 5 1 Blast 40 | . . . . . . . . . . . . . . . . . . . . . . 1 3 17 13 6 Melee Attacks 74 | . . 10 11 5 5 1 3 1 . 1 . . 5 . 17 3 . . 3 . 4 . . 5 . . Impact 34 | . . . . . . . 1 1 . . . . 5 . 17 1 . . . . 4 . . 5 . . Slashing 28 | . . 10 11 5 2 . . . . . . . . . . . . . . . . . . . . . Piercing . | . . . . . . . . . . . . . . . . . . . . . . . . . . . Sneak Attacks 8 | . . . . . 4 . . . . 1 . . . . . . . . 3 . . . . . . . Combat Hostiles . | . . . . . . . . . . . . . . . . . . . . . . . . . . . Follow-up Attacks . | . . . . . . . . . . . . . . . . . . . . . . . . . . . Damage Inflicted 77364 | . 893 2286 3795 2107 855 2375 2016 955 1025 . 533 624 5170 91 3094 3469 374 1841 369 667 6363 6460 882 2551 10890 17679 Guns 31791 | . 746 1672 2412 1325 270 1113 691 955 657 . . 624 2575 91 2433 2970 225 519 . 119 5711 3669 176 766 738 1334 Cannons 22248 | . . 557 312 227 330 1262 659 . . . . . 1738 . 251 . 118 . 369 . 28 2720 706 1774 4040 7157 Explosions 22489 | . 131 57 1039 555 187 . 537 . 368 . 533 . 856 . 410 347 . 1322 . 548 536 63 . . 5854 9146 Melee 68 | . . . . . 68 . . . . . . . . . . . . . . . . . . . . . Ramming 768 | . 16 . 32 . . . 129 . . . . . 1 . . 152 31 . . . 88 8 . 11 258 42 Kinetic 41335 | . 80 1707 3451 1880 457 1113 712 955 657 . . 624 2575 91 2433 2970 225 519 . 119 5711 4608 882 2450 3449 3667 Thermal 13661 | . 131 579 312 227 330 1262 638 . . . . . 1738 . 251 . . . 369 . 28 1781 . 90 1687 4238 Explosive 15145 | . . . . . . . 537 . 368 . 533 . 856 . 410 347 . 1322 . 548 536 63 . . 571 9054 Electromagnetic 6387 | . 666 . . . . . . . . . . . . . . . 118 . . . . . . . 4925 678 Impact . | . . . . . . . . . . . . . . . . . . . . . . . . . . . Slashing 68 | . . . . . 68 . . . . . . . . . . . . . . . . . . . . . Piercing . | . . . . . . . . . . . . . . . . . . . . . . . . . . . Highest Corruption 64 | . . 2 . 2 . . . . . . . . 4 . 3 1 1 3 . . 6 2 . 2 10 64 Average Corruption 3 | . . 2 . 1 . . . . . . . . 1 . 2 1 1 1 . . 3 1 . 1 4 11 Corruption Purged 21 | . . . . 3 . . . . . . . . 4 . . . 1 3 . . 9 1 . . . . Corruption Blocked . | . . . . . . . . . . . . . . . . . . . . . . . . . . . Effects 177 | . . . . 4 . . . . . . . . 10 . 37 8 3 1 . . 24 11 . 16 15 48 Message Errors 40 | . . . . 2 . . . . . . . . 2 . 9 2 . . . . 3 1 . 6 5 10 Matter Fused 36 | . . . . 1 . . . . . . . . 3 . 7 1 1 . . . 5 5 . 2 3 8 Heat Flow Errors 17 | . . . . . . . . . . . . . 2 . 6 1 . . . . 2 1 . 1 . 4 Energy Discharges 24 | . . . . . . . . . . . . . . . 9 . 1 . . . 1 3 . 3 1 6 Parts Rejected 6 | . . . . . . . . . . . . . 1 . . . . 1 . . 1 . . . 1 2 Parts Fused 3 | . . . . . . . . . . . . . . . 1 1 . . . . . . . . 1 . Data Loss (minor) 21 | . . . . 1 . . . . . . . . 1 . 1 2 . . . . 8 1 . 2 . 5 Data Loss (major) 13 | . . . . . . . . . . . . . . . 3 1 . . . . 1 . . 2 3 3 Misfires 1 | . . . . . . . . . . . . . . . . . . . . . . . . . . 1 Alerts 2 | . . . . . . . . . . . . . . . 1 . 1 . . . . . . . . . Misdirections 4 | . . . . . . . . . . . . . . . . . . . . . . . . . . 4 Weapon Failures 10 | . . . . . . . . . . . . . 1 . . . . . . . 3 . . . 1 5 Overload Shots 8 | . . . . . . . . . . . . . . . 1 . . . . . . 7 . . . . Effects 1 | . . . . . . . . . . . . . . . . . . . . . . 1 . . . . Heat Surge 1 | . . . . . . . . . . . . . . . . . . . . . . 1 . . . . Overflow Damage 1521 | . 5 9 48 3 38 30 23 . 12 . . . 3 . 51 18 2 30 7 . 55 7 . 28 561 591 Projectiles 825 | . . 9 . . . 30 10 . . . . . . . . . . . 7 . . . . 28 468 273 Explosions 638 | . 5 . 48 3 . . 13 . 12 . . . 3 . 51 . . 30 . . 55 7 . . 93 318 Melee 58 | . . . . . 38 . . . . . . . . . . 18 2 . . . . . . . . . Knockbacks 50 | . . . 1 . . . 1 . . . . . . . . 1 . . . . . 1 2 14 14 16 Impact 4 | . . . 1 . . . 1 . . . . . . . . 1 . . . . . . . . . 1 Kinetic 46 | . . . . . . . . . . . . . . . . . . . . . . 1 2 14 14 15 Secondary . | . . . . . . . . . . . . . . . . . . . . . . . . . . . Self-Inflicted Damage 998 | . . . 68 28 . . . . . . . . . . . 70 . 30 . . 19 32 . . 595 156 Shots 48 | . . . 2 2 . . . . . . . . . . . 1 . 2 . . 2 1 . . 35 3 Rammed 69 | . 5 . 3 . . . 11 . . . . . 1 . . 7 5 . . . 5 1 . 1 16 14 Targets Rammed 77 | . 5 . 3 . . . 13 . . . . . 1 . . 8 5 . . . 6 1 . 1 18 16 Kicked . | . . . . . . . . . . . . . . . . . . . . . . . . . . . Crushed 8 | . . . . . . . 2 . . . . . . . . 1 . . . . 1 . . . 2 2 Highest Temperature 491 | . 240 297 351 186 86 255 282 99 143 . 90 267 329 99 278 301 54 205 48 260 362 491 162 194 199 433 Average Temperature 82 | . 59 98 82 53 37 67 63 26 45 . 44 126 86 56 67 128 23 59 24 114 161 119 74 77 90 131 Received Heat Transfer 7013 | . 165 383 612 354 40 342 183 54 48 . 103 216 577 135 419 411 36 136 . 20 292 1122 16 130 495 724 Effects 14 | . 1 1 . . . 1 . . . . . 2 . . 1 . . . . . 1 2 . . . 5 Shutdowns 4 | . . . . . . . . . . . . . . . . . . . . . . . . . . 4 Energy Bleed 7 | . 1 1 . . . 1 . . . . . . . . 1 . . . . . 1 2 . . . . Interference 2 | . . . . . . . . . . . . 2 . . . . . . . . . . . . . . Damage (minor) 1 | . . . . . . . . . . . . . . . . . . . . . . . . . . 1 Siege Activations 50 | . . . . . . . 1 . . . . 1 6 . 7 4 . 2 . . 8 5 . 5 4 7 Total Turns 1040 | . . . . . . . 3 . . . . 14 115 . 103 145 . 15 . . 176 182 . 51 34 202 Longest Duration 96 | . . . . . . . 3 . . . . 14 32 . 35 51 . 11 . . 38 72 . 17 16 96 Robots Corrupted 25 | . 2 . . . . . . . . . . . . . . . . . . . . . . . 21 2 Combat Hostiles 24 | . 1 . . . . . . . . . . . . . . . . . . . . . . . 21 2 Parts Fried 58 | . 8 . . . . . . . . . . . . . . 3 3 . . . . . . . 39 5 Impact Corruptions 4 | . . . . . . . . . . . . . . . . 3 1 . . . . . . . . . Robots Melted 6 | . . . . . . . . . . . . . . . . . . . . . . . . . 2 4 Combat Hostiles 4 | . . . . . . . . . . . . . . . . . . . . . . . . . 2 2 Parts Melted 40 | . . . . 1 3 4 . . . . . . 2 . 1 . . . . . . 1 . 1 5 22 Heat Transferred 15523 | . 100 765 407 370 555 2109 962 . . . . . 2331 . 296 . . . 407 . 37 2237 . 74 1551 3322 Parts Sabotaged 8 | . . . . . . . . . . . . . . . 2 . . . . . . . . . . 6 Parts Stolen . | . . . . . . . . . . . . . . . . . . . . . . . . . . . Parts Stripped . | . . . . . . . . . . . . . . . . . . . . . . . . . . . Power Chain Reactions 13 | . 2 . . . . . . . . . . . . . . . . . . . . . . . 10 1 Missiles Intercepted . | . . . . . . . . . . . . . . . . . . . . . . . . . . . Alert | -11 -10 -10 -8 -8 -7 -7 -7 -7 -7 -7 -6 -6 -6 -6 -6 -5 -5 -5 -5 -4 -4 -4 -3 -3 -2 -1 ------- Run | Yrd Mat Sub Mat Gar Fac Gar Fac Low Low Dat Pro Fac Gar Fac Gar Fac Upp Upp Zhi Pro Fac Gar Res Gar Res Acc Peak Influence 3511 | . 160 . 461 1115 683 1040 860 . . . . 109 1024 582 1315 1214 . . . . 1258 1701 1105 1471 2590 3511 Initial 1548 | . . . . 269 585 383 546 . . . . . 76 537 186 690 . . . . . 880 956 828 827 1548 Average 784 | . 62 . 275 708 581 698 585 . . . . 40 575 507 814 885 . . . . 656 1389 991 1171 1459 2119 Maximum Alert Level 5 | . . . 2 4 2 3 3 . . . . . 3 2 4 4 . . . . 4 5 4 4 5 5 Low Security (%) 13 | 100 100 . 21 . . . . . . . . 100 18 . 4 . . . . . 20 . . . . . Level 1 12 | . . . 53 9 . 1 28 . . . . . 12 16 10 . . . . . 8 . . . . . Level 2 21 | . . . 24 42 100 53 30 . . . . . 27 83 10 25 . . . . 11 . . . . . Level 3 30 | . . . . 40 . 45 41 . . . . . 42 . 43 49 . . . . 53 21 98 40 39 . Level 4 15 | . . . . 7 . . . . . . . . . . 30 25 . . . . 6 60 1 59 18 45 Level 5 2 | . . . . . . . . . . . . . . . . . . . . . . 17 . . 27 3 High Security 3 | . . . . . . . . . . . . . . . . . . . . . . . . . 14 50 Max Security . | . . . . . . . . . . . . . . . . . . . . . . . . . . . Squads Dispatched 107 | . 2 . 3 . 5 . 7 . . . . 4 . 2 . 12 . . . . 17 . 3 . 17 35 Investigation 20 | . 1 . 2 . 2 . 2 . . . . 2 . 1 . 2 . . . . 3 . 1 . 3 1 Extermination 13 | . . . . . 1 . 2 . . . . 1 . . . 3 . . . . 3 . . . 1 2 Reinforcement 22 | . 1 . 1 . . . 3 . . . . . . 1 . 5 . . . . 4 . . . 2 5 Assault 40 | . . . . . 2 . . . . . . . . . . 2 . . . . 2 . 2 . 10 22 Garrison 12 | . . . . . . . . . . . . 1 . . . . . . . . 5 . . . 1 5 Intercept . | . . . . . . . . . . . . . . . . . . . . . . . . . . . Searches Triggered . | . . . . . . . . . . . . . . . . . . . . . . . . . . . Construction Impeded 7 | . . . 1 . . . . . . . . . . . . 1 . . . . 3 . . . . 2 Haulers Reinforced 2 | . . . . . . . 1 . . . . . . . . 1 . . . . . . . . . . Active Scanning Responses . | . . . . . . . . . . . . . . . . . . . . . . . . . . . Cargo Convoy Interrupts . | . . . . . . . . . . . . . . . . . . . . . . . . . . . Stealth | -11 -10 -10 -8 -8 -7 -7 -7 -7 -7 -7 -6 -6 -6 -6 -6 -5 -5 -5 -5 -4 -4 -4 -3 -3 -2 -1 --------- Run | Yrd Mat Sub Mat Gar Fac Gar Fac Low Low Dat Pro Fac Gar Fac Gar Fac Upp Upp Zhi Pro Fac Gar Res Gar Res Acc Distress Signals 13 | . 1 . 2 . . . . . . . . . . . . 1 . . . . 2 . . . 4 3 Communications Jammed 55 | . . . . . . . . . . . . . . . . . . . . . . . . . 55 . Distress Signals 53 | . . . . . . . . . . . . . . . . . . . . . . . . . 53 . Times Spotted 815 | . 18 16 50 25 10 28 40 13 6 . 6 8 32 5 42 54 2 14 . 4 69 31 13 29 114 186 Peak Tracking Total 25 | . 3 2 8 6 3 4 4 5 3 . 3 3 6 5 6 5 1 5 . 4 10 11 8 4 18 25 Tactical Retreats 32 | . 2 1 1 1 . . 2 1 . . . . . . 1 4 . . . . 3 2 1 1 7 5 Traps | -11 -10 -10 -8 -8 -7 -7 -7 -7 -7 -7 -6 -6 -6 -6 -6 -5 -5 -5 -5 -4 -4 -4 -3 -3 -2 -1 ------- Run | Yrd Mat Sub Mat Gar Fac Gar Fac Low Low Dat Pro Fac Gar Fac Gar Fac Upp Upp Zhi Pro Fac Gar Res Gar Res Acc Traps Triggered 25 | . . . 2 . 1 1 . . . . . . 1 . 6 . . . . . 1 6 . 5 1 1 Indirectly . | . . . . . . . . . . . . . . . . . . . . . . . . . . . Trap Hack Attempts 42 | . . . . . . . . . . . . . . . . . . . . . 12 . . . . 30 Triggered 1 | . . . . . . . . . . . . . . . . . . . . . 1 . . . . . Disarmed 1 | . . . . . . . . . . . . . . . . . . . . . . . . . . 1 Reprogrammed 6 | . . . . . . . . . . . . . . . . . . . . . 1 . . . . 5 Reused 4 | . . 1 . . . . . . . . . . . . . . . . . . 1 . . . . 2 Traps Extracted . | . . . . . . . . . . . . . . . . . . . . . . . . . . . Installed 1 | . . 1 . . . . . . . . . . . . . . . . . . . . . . . . Triggered 4 | . . . . . . . . . . . . . . . . . 1 . . . 1 . . . . 2 Most Traps Carried 1 | . . 1 . . . . . . . . . . . . . . . . . . . . . . . . Machines | -11 -10 -10 -8 -8 -7 -7 -7 -7 -7 -7 -6 -6 -6 -6 -6 -5 -5 -5 -5 -4 -4 -4 -3 -3 -2 -1 ---------- Run | Yrd Mat Sub Mat Gar Fac Gar Fac Low Low Dat Pro Fac Gar Fac Gar Fac Upp Upp Zhi Pro Fac Gar Res Gar Res Acc Machines Disabled 60 | . 1 . 4 4 1 2 3 2 . . . . 1 . 8 7 . . . . 6 4 1 2 7 7 Max in Single Turn 4 | . 1 . 1 1 1 1 1 1 . . . . 1 . 1 1 . . . . 4 1 1 1 4 1 Garrison Access 3 | . . . . . . . 1 . . . . . . . . . . . . . . . . . 1 1 Garrison Relay 12 | . . . . 3 . 2 . . . . . . 1 . 2 . . . . . . 2 . 2 . . Machines Repaired . | . . . . . . . . . . . . . . . . . . . . . . . . . . . Machines Dismantled . | . . . . . . . . . . . . . . . . . . . . . . . . . . . Machines Sabotaged . | . . . . . . . . . . . . . . . . . . . . . . . . . . . Overloaded Fab Kills . | . . . . . . . . . . . . . . . . . . . . . . . . . . . Hacking | -11 -10 -10 -8 -8 -7 -7 -7 -7 -7 -7 -6 -6 -6 -6 -6 -5 -5 -5 -5 -4 -4 -4 -3 -3 -2 -1 --------- Run | Yrd Mat Sub Mat Gar Fac Gar Fac Low Low Dat Pro Fac Gar Fac Gar Fac Upp Upp Zhi Pro Fac Gar Res Gar Res Acc Machines Accessed 104 | . 5 1 12 4 5 2 16 1 1 3 . 7 3 2 1 9 . 2 4 . 12 2 1 2 6 3 Terminals 44 | . 4 . 8 4 1 2 5 . . . . 2 3 . 1 2 . 1 . . 4 2 . 2 2 1 Fabricators 14 | . . . . . 1 . 4 . . . . 1 . . . 3 . . . . 3 . . . 1 1 Repair Stations 12 | . . . 1 . . . 2 . . . . 2 . . . 2 . . . . 3 . . . 2 . Recycling Units 9 | . 1 . 1 . 2 . 4 . . . . . . . . 1 . . . . . . . . . . Scanalyzers 5 | . . . 1 . . . . . . . . 1 . 1 . 1 . . . . 1 . . . . . Garrison Access 9 | . . . 1 . 1 . 1 . . . . 1 . 1 . . . . . . 1 . 1 . 1 1 Total Hacks 294 | . 16 3 36 9 17 4 45 1 1 26 . 17 8 7 2 23 . 2 17 . 30 5 3 4 13 5 Successful 171 | . 9 3 20 4 8 . 23 1 1 26 . 12 2 4 2 10 . 2 17 . 18 . 1 . 6 2 Failed 122 | . 6 . 16 5 9 4 22 . . . . 5 6 3 . 13 . . . . 12 5 2 4 7 3 Catastrophic 23 | . 1 . 3 . 1 2 5 . . . . . . 1 . 3 . . . . 1 2 . . 2 2 Database Lockouts 1 | . 1 . . . . . . . . . . . . . . . . . . . . . . . . . Manual 80 | . 5 . 17 . 11 . 20 . . . . 7 1 2 1 4 . . . . 6 . 2 . 3 1 Terminals 110 | . 13 . 21 9 2 4 19 . . . . 4 8 . 2 5 . 1 . . 8 5 . 4 3 2 Fabricators 34 | . . . . . 4 . 8 . . . . 2 . . . 9 . . . . 7 . . . 3 1 Repair Stations 33 | . . . 6 . . . 4 . . . . 7 . . . 4 . . . . 7 . . . 5 . Recycling Units 28 | . 3 . 2 . 8 . 12 . . . . . . . . 3 . . . . . . . . . . Scanalyzers 18 | . . . 5 . . . . . . . . 2 . 4 . 2 . . . . 5 . . . . . Garrison Access 22 | . . . 2 . 3 . 2 . . . . 2 . 3 . . . . . . 3 . 3 . 2 2 Terminal Hacks 85 | . 7 3 8 4 2 . 6 1 1 26 . 1 2 . 1 2 . 2 17 . 2 . . . . . Record 15 | . . 3 . . . . . . . 6 . . . . . . . 1 5 . . . . . . . Part Schematic 15 | . . . . . . . . . . 11 . . . . . . . . 4 . . . . . . . Robot Schematic 6 | . . . . . . . . . . 6 . . . . . . . . . . . . . . . . Robot Analysis 7 | . 1 . 2 . . . . . . . . . . . . . . . 4 . . . . . . . Prototype ID Bank 10 | . 2 . 1 . . . . . . 3 . . . . . . . . 4 . . . . . . . Open Door 4 | . . . . 1 . . . 1 1 . . . . . . . . 1 . . . . . . . . Branch Access Points 2 | . . . . . . . 1 . . . . . . . . 1 . . . . . . . . . . Emergency Access Points 3 | . . . . 1 . . . . . . . . 1 . 1 . . . . . . . . . . . Garrison Index 1 | . . . . . 1 . . . . . . . . . . . . . . . . . . . . . Unreport Threat 7 | . 1 . 2 . . . 4 . . . . . . . . . . . . . . . . . . . Locate Traps 3 | . . . 1 . . . 1 . . . . . . . . . . . . . 1 . . . . . Hauler Manifests 1 | . 1 . . . . . . . . . . . . . . . . . . . . . . . . . Registered Components 1 | . . . . . . . . . . . . . . . . . . . . . 1 . . . . . Zone Layout 7 | . 2 . 2 . 1 . . . . . . 1 . . . 1 . . . . . . . . . . Garrison Registry 1 | . . . . . . . . . . . . . 1 . . . . . . . . . . . . . Patrol Navigation 1 | . . . . 1 . . . . . . . . . . . . . . . . . . . . . . Security Stations 1 | . . . . 1 . . . . . . . . . . . . . . . . . . . . . . Fabricator Hacks 11 | . . . . . 1 . 1 . . . . . . . . 4 . . . . 4 . . . 1 . Network Status 4 | . . . . . 1 . 1 . . . . . . . . . . . . . 1 . . . 1 . Load Schematic 4 | . . . . . . . . . . . . . . . . 2 . . . . 2 . . . . . Build 3 | . . . . . . . . . . . . . . . . 2 . . . . 1 . . . . . Repair Station Hacks 13 | . . . 3 . . . 2 . . . . 3 . . . . . . . . 3 . . . 2 . Scan Component 8 | . . . 2 . . . 1 . . . . 2 . . . . . . . . 2 . . . 1 . Repair 5 | . . . 1 . . . 1 . . . . 1 . . . . . . . . 1 . . . 1 . Recycling Unit Hacks 5 | . 1 . . . 1 . 3 . . . . . . . . . . . . . . . . . . . Retrieve Components 5 | . 1 . . . 1 . 3 . . . . . . . . . . . . . . . . . . . Scanalyzer 17 | . . . 5 . . . . . . . . 2 . 3 . 2 . . . . 5 . . . . . Insert Component 9 | . . . 2 . . . . . . . . 1 . 2 . 1 . . . . 3 . . . . . Analyze 8 | . . . 3 . . . . . . . . 1 . 1 . 1 . . . . 2 . . . . . Garrison Access Hacks 11 | . . . 1 . 1 . 2 . . . . 1 . 1 . . . . . . 1 . 1 . 1 2 Unlock Access 7 | . . . 1 . 1 . . . . . . 1 . 1 . . . . . . 1 . 1 . 1 . Seal Access 2 | . . . . . . . 1 . . . . . . . . . . . . . . . . . . 1 Coupler Status 2 | . . . . . . . 1 . . . . . . . . . . . . . . . . . . 1 Unauthorized Hacks 29 | . 1 . 3 . 3 . 9 . . . . 5 . . 1 2 . . . . 3 . . . 2 . Terminals 6 | . . . 2 . . . 1 . . . . 1 . . 1 . . . . . 1 . . . . . Track 1 | . . . 1 . . . . . . . . . . . . . . . . . . . . . . . Botnet 4 | . . . 1 . . . 1 . . . . 1 . . . . . . . . 1 . . . . . Disrupt 1 | . . . . . . . . . . . . . . . 1 . . . . . . . . . . . Fabricators 10 | . . . . . 1 . 3 . . . . 2 . . . 2 . . . . 1 . . . 1 . Liberate 8 | . . . . . 1 . 3 . . . . 1 . . . 1 . . . . 1 . . . 1 . Recompile 2 | . . . . . . . . . . . . 1 . . . 1 . . . . . . . . . . Repair Stations 1 | . . . . . . . . . . . . 1 . . . . . . . . . . . . . . Mechanics 1 | . . . . . . . . . . . . 1 . . . . . . . . . . . . . . Recycling Units 8 | . 1 . . . 2 . 5 . . . . . . . . . . . . . . . . . . . Reject 4 | . . . . . 1 . 3 . . . . . . . . . . . . . . . . . . . Recyclers 1 | . . . . . . . 1 . . . . . . . . . . . . . . . . . . . Mask 2 | . . . . . 1 . 1 . . . . . . . . . . . . . . . . . . . Tunnel 1 | . 1 . . . . . . . . . . . . . . . . . . . . . . . . . Scanalyzers . | . . . . . . . . . . . . . . . . . . . . . . . . . . . Garrison Access 4 | . . . 1 . . . . . . . . 1 . . . . . . . . 1 . . . 1 . Broadcast 1 | . . . 1 . . . . . . . . . . . . . . . . . . . . . . . Reprogram 3 | . . . . . . . . . . . . 1 . . . . . . . . 1 . . . 1 . Data Cores Recovered 2 | . 1 . . . . . . . . . . . . . . . . . . . . . . . . 1 Used 1 | . . . . . . . . . . . . . . . . . . . . . . . . . . 1 Hacking Detections 83 | . 4 . 11 4 5 2 13 . . . . 6 3 2 1 8 . . . . 10 2 1 2 6 3 Full Trace Events 16 | . . . . . 2 1 1 . . . . . 1 1 . . . . . . 3 2 1 1 2 1 Feedback Events 1 | . . . . . . . . . . . . . . . . . . . . . . 1 . . . . Corruption 1 | . . . . . . . . . . . . . . . . . . . . . . 1 . . . . Feedback Blocked . | . . . . . . . . . . . . . . . . . . . . . . . . . . . Robot Schematics Acquired 6 | . . . . . . . . . . 6 . . . . . . . . . . . . . . . . Robots Built 1 | . . . . . . . . . . . . . . . . 1 . . . . . . . . . . Authchips 1 | . . . . . . . . . . . . . . . . 1 . . . . . . . . . . Time 58 | . . . . . . . . . . . . . . . . 58 . . . . . . . . . . Total Robot Build Rating 3 | . . . . . . . . . . . . . . . . 3 . . . . . . . . . . Part Schematics Acquired 22 | . . . 2 . . . . . . 11 . 1 . 1 . 1 . . 4 . 2 . . . . . Parts Built 4 | . . . . . . . . . . . . . . . . 2 . . . . 2 . . . . . Authchips 1 | . . . . . . . . . . . . . . . . 1 . . . . . . . . . . Time 116 | . . . . . . . . . . . . . . . . 58 . . . . 58 . . . . . Total Part Build Rating 28 | . . . . . . . . . . . . . . . . 14 . . . . 14 . . . . . Parts Repaired 4 | . . . 1 . . . 1 . . . . 1 . . . . . . . . 1 . . . . . Time 242 | . . . 32 . . . 31 . . . . 31 . . . . . . . . 80 . . . 68 . Parts Recycled . | . . . . . . . . . . . . . . . . . . . . . . . . . . . Recycled Matter . | . . . . . . . . . . . . . . . . . . . . . . . . . . . Retrieved Matter . | . . . . . . . . . . . . . . . . . . . . . . . . . . . Retrieved Components 38 | . 9 . . . 10 . 19 . . . . . . . . . . . . . . . . . . . Parts Scanalyzed 7 | . . . 2 . . . . . . . . 1 . 1 . 1 . . . . 2 . . . . . Part Schematics Acquired 7 | . . . 2 . . . . . . . . 1 . 1 . 1 . . . . 2 . . . . . Parts Damaged . | . . . . . . . . . . . . . . . . . . . . . . . . . . . Bothacking | -11 -10 -10 -8 -8 -7 -7 -7 -7 -7 -7 -6 -6 -6 -6 -6 -5 -5 -5 -5 -4 -4 -4 -3 -3 -2 -1 ------------ Run | Yrd Mat Sub Mat Gar Fac Gar Fac Low Low Dat Pro Fac Gar Fac Gar Fac Upp Upp Zhi Pro Fac Gar Res Gar Res Acc Used RIF Installer 9 | . . . . 2 . 1 . . . . . . 1 . 2 . . . . . . 1 . 2 . . Coupler Efficiency 1 | . . . . . . . . . . . . . . . . . . . . . . . . 1 . . Hotswap 1 | . . . . . . . . . . . . . . . 1 . . . . . . . . . . . Code Merge 1 | . . . . . . . . . . . . . 1 . . . . . . . . . . . . . Robot Detection 1 | . . . . 1 . . . . . . . . . . . . . . . . . . . . . . Watcher Feeds 1 | . . . . . . . . . . . . . . . . . . . . . . . . 1 . . Patrol Navigation 1 | . . . . . . . . . . . . . . . 1 . . . . . . . . . . . Program Shield 1 | . . . . . . 1 . . . . . . . . . . . . . . . . . . . . Autoassimilate 1 | . . . . . . . . . . . . . . . . . . . . . . 1 . . . . Robots Hacked 51 | . . . . . 3 4 4 1 . 1 1 . . 1 8 5 . . 3 . . 2 2 9 4 3 Non-combat 6 | . . . . . 2 . . . . . . . . 1 . 2 . . . . . . . . . 1 Combat 45 | . . . . . 1 4 4 1 . 1 1 . . . 8 3 . . 3 . . 2 2 9 4 2 Autoassimilated 3 | . . . . . . . . . . . . . . . . . . . . . . 1 . 1 . 1 Robot Hacks Applied 55 | . . . . . 4 4 4 1 . 1 1 . . 2 8 8 . . 3 . . 1 2 8 4 4 parse_system 4 | . . . . . . . . . . 1 . . . . . . . . 3 . . . . . . . no_distress 1 | . . . . . 1 . . . . . . . . . . . . . . . . . . . . . drop_inventory 1 | . . . . . 1 . . . . . . . . . . . . . . . . . . . . . find_recycling 1 | . . . . . 1 . . . . . . . . . . . . . . . . . . . . . purge_threat 7 | . . . . . . . . . . . . . . 2 . 2 . . . . . . . . . 3 reprogram_traps 1 | . . . . . . . . . . . . . . . . 1 . . . . . . . . . . spike_heat 1 | . . . . . . . . . . . . . . . . 1 . . . . . . . . . . overload_power 1 | . . . . . . . . 1 . . . . . . . . . . . . . . . . . . amplify_resonance 4 | . . . . . . . . . . . . . . . . . . . . . . . 1 2 . 1 wipe_record 1 | . . . . . . . . . . . . . . . . 1 . . . . . . . . . . overwrite_iff 13 | . . . . . . 3 . . . . . . . . 4 . . . . . . . 1 3 2 . streamctrl_high 4 | . . . . . . . . . . . . . . . 2 . . . . . . . . 1 1 . formatsys_low 1 | . . . . . . . . . . . . . . . . 1 . . . . . . . . . . formatsys_high 14 | . . . . . 1 1 4 . . . . . . . 2 2 . . . . . 1 . 2 1 . formatsys_deep 1 | . . . . . . . . . . . 1 . . . . . . . . . . . . . . . Relay Couplers Released 65 | . . . . 17 . 8 4 . . . . . 8 . 6 . . . . . . 9 . 8 3 2 Machine Destruction 53 | . . . . 13 . 8 . . . . . . 4 . 6 . . . . . . 9 . 8 3 2 Programmers 12 | . . . . 4 . . 4 . . . . . 4 . . . . . . . . . . . . . Attached 27 | . . . . . 2 2 3 . . . 2 . . 1 4 3 . . . . . 2 1 3 2 2 Fabnet Peak Effective % . | . . . . . . . . . . . . . . . . . . . . . . . . . . . Robots Rewired 6 | . . . . . . . . 4 . . . . . . . . . . . . . 2 . . . . Allies Hacked 2 | . . . . 1 . . . . . . . . . . . 1 . . . . . . . . . . Hacks Repelled . | . . . . . . . . . . . . . . . . . . . . . . . . . . . Allies | -11 -10 -10 -8 -8 -7 -7 -7 -7 -7 -7 -6 -6 -6 -6 -6 -5 -5 -5 -5 -4 -4 -4 -3 -3 -2 -1 -------- Run | Yrd Mat Sub Mat Gar Fac Gar Fac Low Low Dat Pro Fac Gar Fac Gar Fac Upp Upp Zhi Pro Fac Gar Res Gar Res Acc Total Allies 57 | . . . . 2 1 4 7 4 . . 1 4 2 . 10 4 . . . . . 4 1 7 5 1 Largest Group 5 | . . . . 2 1 1 5 5 1 . 1 3 2 2 3 4 . . . . . 2 2 2 1 1 Highest-Rated Group 219 | . . . . 50 32 32 112 157 16 . 27 36 142 142 124 147 . . . . . 80 42 116 178 219 Highest-Rated Ally 219 | . . . . 25 32 32 32 32 16 . 27 32 80 80 47 49 . . . . . 51 30 116 178 219 Total Orders 20 | . . . . . . . 4 . . . . . . . . 13 . . . . . . . 1 . 2 STAY 9 | . . . . . . . 2 . . . . . . . . 5 . . . . . . . 1 . 1 FOLLOW 4 | . . . . . . . 2 . . . . . . . . 1 . . . . . . . . . 1 AID 7 | . . . . . . . . . . . . . . . . 7 . . . . . . . . . . Ally Attacks 270 | . . . . 6 3 10 42 37 3 . . 3 13 5 21 46 . . . . . 5 5 18 26 27 Total Damage 9965 | . . . . 215 87 210 1297 784 46 . . 76 427 262 431 1151 . . . . . 81 42 530 1784 2542 Kills 67 | . . . . 1 1 2 17 5 1 . . . 4 . . 11 . . . . . 1 . 2 8 14 Allies Corrupted 1 | . . . . . . . . . . . . . . . . 1 . . . . . . . . . . Allies Melted 2 | . . . . . . . . . . . . . . 1 . . . . . . . . . 1 . . Intel | -11 -10 -10 -8 -8 -7 -7 -7 -7 -7 -7 -6 -6 -6 -6 -6 -5 -5 -5 -5 -4 -4 -4 -3 -3 -2 -1 ------- Run | Yrd Mat Sub Mat Gar Fac Gar Fac Low Low Dat Pro Fac Gar Fac Gar Fac Upp Upp Zhi Pro Fac Gar Res Gar Res Acc Robot Analysis Total 7 | . 1 . 2 . . . . . . . . . . . . . . . 4 . . . . . . . Derelict Logs Recovered 14 | . . 3 . . . . . 3 2 . 2 . . . . . 1 1 . 2 . . . . . . Drone Launches . | . . . . . . . . . . . . . . . . . . . . . . . . . . . Drone Recoveries . | . . . . . . . . . . . . . . . . . . . . . . . . . . . Exploration | -11 -10 -10 -8 -8 -7 -7 -7 -7 -7 -7 -6 -6 -6 -6 -6 -5 -5 -5 -5 -4 -4 -4 -3 -3 -2 -1 ------------- Run | Yrd Mat Sub Mat Gar Fac Gar Fac Low Low Dat Pro Fac Gar Fac Gar Fac Upp Upp Zhi Pro Fac Gar Res Gar Res Acc Turns Passed 39490 | 3 1335 3522 2762 1505 822 1489 2103 1648 1707 148 1304 606 1383 329 1938 1920 2442 3018 383 2113 1526 1326 364 1235 1191 1368 Spaces Moved 18804 | 1 630 1907 1174 758 425 703 1092 917 991 89 735 302 566 188 949 828 1420 1226 147 870 596 511 196 572 492 519 Core 27 | . . . . . . . . . . . . . . . . . . . . . . . . . . 27 Treads 18777 | 1 630 1907 1174 758 425 703 1092 917 991 89 735 302 566 188 949 828 1420 1226 147 870 596 511 196 572 492 492 Legs . | . . . . . . . . . . . . . . . . . . . . . . . . . . . Wheels . | . . . . . . . . . . . . . . . . . . . . . . . . . . . Hover . | . . . . . . . . . . . . . . . . . . . . . . . . . . . Flight . | . . . . . . . . . . . . . . . . . . . . . . . . . . . Fastest Speed 50 | 160 160 160 163 166 170 165 160 165 165 165 165 163 160 160 152 155 160 160 240 240 160 160 160 160 145 50 Average Speed 173 | 160 160 160 184 167 170 167 162 165 165 165 165 166 164 160 157 160 166 238 240 240 174 167 160 160 159 147 Slowest Speed 320 | 160 160 160 260 170 170 250 165 165 165 165 165 245 240 160 160 240 240 240 240 320 240 320 160 160 240 241 Overloaded Moves . | . . . . . . . . . . . . . . . . . . . . . . . . . . . Propulsion Burnouts . | . . . . . . . . . . . . . . . . . . . . . . . . . . . Robots Hopped . | . . . . . . . . . . . . . . . . . . . . . . . . . . . Cave-ins Triggered 1 | . . . . . . . . . . . . . . . . . . . . . . . . . 1 . Teleports 1 | . . . . . . . . . . . . . . . . . . . . . . . . . . 1 Exploration Rate (%) 55 | 1 60 69 78 85 14 70 31 97 92 74 84 9 70 8 88 26 94 96 60 97 19 58 8 62 19 24 Regions Visited 26 Branch Regions 9 Pre-discovered Areas 9 | . 1 2 . . . . . . 2 1 . . . . . . . . 3 . . . . . . . Known Exits Taken 12 | . . . 1 . 1 . 1 1 1 1 1 1 . 1 . 1 . . . . 1 . 1 . . . Unknown Exits Taken 8 | 1 1 1 . . . . . . . . . . . . . . 1 1 1 1 . . . . 1 . Scrap Searched 37 | . . 17 . . . . . 3 5 . 2 . . . . . 4 3 . 3 . . . . . . Spaces Dug 156 | . 4 9 13 4 1 . 5 . 28 . . . 4 . 21 6 . 9 . . 4 . 1 6 2 39 Terrain Destroyed 906 | . 12 29 112 39 16 3 28 . 41 . 48 . 58 . 25 40 . 64 . 37 106 12 6 21 94 115 Melee 34 | . . 6 3 4 1 . . . . . . . 4 . 7 1 . . . . 4 . . 4 . . Projectile 135 | . 5 6 14 2 . 3 . . . . . . . . . 5 . . . 2 17 10 6 17 28 20 AOE 732 | . 7 17 95 33 15 . 28 . 41 . 48 . 54 . 18 34 . 64 . 35 83 . . . 66 94 Terrain Rammed . | . . . . . . . . . . . . . . . . . . . . . . . . . . . Walls Destroyed . | . . . . . . . . . . . . . . . . . . . . . . . . . . . Machines Disabled . | . . . . . . . . . . . . . . . . . . . . . . . . . . . Actions | -11 -10 -10 -8 -8 -7 -7 -7 -7 -7 -7 -6 -6 -6 -6 -6 -5 -5 -5 -5 -4 -4 -4 -3 -3 -2 -1 --------- Run | Yrd Mat Sub Mat Gar Fac Gar Fac Low Low Dat Pro Fac Gar Fac Gar Fac Upp Upp Zhi Pro Fac Gar Res Gar Res Acc Total 23331 | 2 838 2187 1559 896 484 876 1346 1006 1032 90 813 372 846 209 1253 1253 1472 1294 171 886 908 805 226 825 791 891 Wait 1710 | . 118 58 198 63 7 49 108 27 8 . 58 29 97 5 132 259 19 23 . . 109 52 1 132 89 69 Move 18782 | . 629 1906 1173 757 425 702 1091 916 990 88 734 302 565 188 948 827 1419 1225 146 869 595 510 196 571 491 519 Hop . | . . . . . . . . . . . . . . . . . . . . . . . . . . . Pick Up 238 | . 11 36 16 5 5 10 22 2 4 . 3 7 8 . 12 10 4 5 2 1 16 20 1 7 13 18 Fast Attach 133 | . 3 7 8 1 2 1 10 1 1 . . 1 5 3 8 4 . 3 3 2 6 15 2 10 18 19 Attach 111 | . . 3 2 2 3 6 3 . . . 2 2 2 . 3 7 1 1 1 . 6 21 2 1 13 30 Detach 47 | . 2 2 . 1 . 1 3 . . . . . 1 . 2 4 1 1 . . 1 9 1 5 8 5 Swap 357 | 2 6 20 22 13 13 16 29 6 7 1 8 9 31 5 35 24 5 11 3 3 24 6 4 18 12 24 Drop 238 | . 5 33 22 5 5 9 24 2 6 . 1 6 10 3 11 9 . 5 2 3 17 10 2 14 19 15 Fire 1423 | . 59 102 98 44 17 81 37 21 16 . 7 16 119 5 82 96 18 20 11 8 112 134 17 56 107 140 Melee 74 | . . 10 11 5 5 1 3 1 . 1 . . 5 . 17 3 . . 3 . 4 . . 5 . . Ram 2 | . . . . . . . . . . . . . . . . . . . . . . . . . . 2 Kick . | . . . . . . . . . . . . . . . . . . . . . . . . . . . Crush 75 | . 5 . 3 . . . 13 . . . . . 1 . . 8 5 . . . 6 1 . 1 18 14 Escape Stasis 22 | . . . . . 1 . . . . . . . 2 . 2 . . . . . . 6 . 3 2 6 Rewire 61 | . . . . . 1 . 3 30 . . . . . . 1 2 . . . . . 21 . 2 1 . Trap 43 | . . 1 . . . . . . . . . . . . . . . . . . 12 . . . . 30 Miscellaneous 15 | . . 9 6 . . . . . . . . . . . . . . . . . . . . . . . Route ------- -11/Scrapyard -10/Materials (discovered 3 exits: [*Mat x2] / *Sub) -10/Subcaves (discovered 3 exits: *Mat x2 / Rec) -8/Materials (discovered 3 exits: *Fac x2 / Gar) -8/Garrison (discovered 3 exits: *Fac x3) -7/Factory -7/Garrison (discovered 3 exits: *Fac x3) -7/Factory (discovered 4 exits: *Fac / *Sto / *Low x2) -7/Lower Caves -7/Lower Caves (discovered 2 exits: *Fac / *Dat) -7/Data Miner -6/Proximity Caves -6/Factory (discovered 3 exits: Fac x2 / Gar) -6/Garrison (discovered 3 exits: *Fac x3) -6/Factory -6/Garrison (discovered 3 exits: *Fac x3) -5/Factory (discovered 4 exits: *Upp x2 / Ext x2) -5/Upper Caves -5/Upper Caves (discovered 2 exits: *Fac / *Zhi) -5/Zhirov -4/Proximity Caves -4/Factory (discovered 2 exits: Res / Gar) -4/Garrison (discovered 2 exits: *Res x2) -3/Research (discovered 2 exits: Res / Gar) -3/Garrison (discovered 2 exits: *Res x2) -2/Research -1/Access History --------- Turn | Location | Event 4 | -11/Scrapyard | Discovered new exit (range 0) 4 | -11/Scrapyard | Entered Materials 16 | -10/Materials | Central database locked down 312 | -10/Materials | Build established: Mutant 407 | -10/Materials | Discovered new exit (range 3) 597 | -10/Materials | Discovered new exit (range 13) 1326 | -10/Materials | Discovered new exit (range 8) 1339 | -10/Materials | Entered Subcaves 1398 | -10/Subcaves | Learned Materials emergency access door positions 1433 | -10/Subcaves | Identified exit to Recycling 1620 | -10/Subcaves | Ambushed by angry Subdweller bent on revenge 1631 | -10/Subcaves | Disturbed a concealed Subdweller 1754 | -10/Subcaves | Disturbed a concealed Subdweller 1782 | -10/Subcaves | Core integrity fell below 50% 1858 | -10/Subcaves | Shifting Twisted Machinery released Sub. Beam Cannon 1864 | -10/Subcaves | Shifting Twisted Machinery released Mak. Light Armor Plating 1929 | -10/Subcaves | A swath of the cavern ceiling suddenly collapsed 2025 | -10/Subcaves | Visited Clippyterm 2029 | -10/Subcaves | Learned Factory trap positions 2095 | -10/Subcaves | Discovered new exit (range 10) 2828 | -10/Subcaves | Disturbed a concealed Subdweller 2828 | -10/Subcaves | Build established: Subdweller-Mutant 3052 | -10/Subcaves | Discovered new exit (range 13) 3060 | -10/Subcaves | Learned location of Zion (-6) 3060 | -10/Subcaves | Met a Zionite searching for "candidates" 3156 | -10/Subcaves | Disturbed a concealed Subdweller 3165 | -10/Subcaves | Core integrity fell below 20% 3416 | -10/Subcaves | Shifting Twisted Machinery released Spk. Treads 3463 | -10/Subcaves | Shifting Twisted Machinery released Sub. Power Source 4628 | -10/Subcaves | Ambushed by Subdweller buried in earth 4861 | -10/Subcaves | Entered Materials 4861 | -8/Materials | Evolved 4 slots: Propulsion x1, Utility x2, Weapon x1 5005 | -8/Materials | Destroyed 7 combat bots 5266 | -8/Materials | Build established: Subdweller-Tank 5929 | -8/Materials | Discovered new exit (range 19) 6312 | -8/Materials | Repaired Spk. Treads 6352 | -8/Materials | Build established: Scavenger-Tank 6479 | -8/Materials | Discovered new exit (range 14) 6484 | -8/Materials | Identified exit to Garrison 7311 | -8/Materials | Build established: Tank 7623 | -8/Materials | Entered Garrison 7651 | -8/Garrison | Rescued a captive Derelict 7652 | -8/Garrison | Rescued a captive Derelict 7684 | -8/Garrison | Triggered checkpoint 7759 | -8/Garrison | Garrison Relay disabled 7769 | -8/Garrison | Installed Relay Interface Framework 7944 | -8/Garrison | Triggered checkpoint 7996 | -8/Garrison | Garrison Relay disabled 8033 | -8/Garrison | Discovered new exit (range 12) 8287 | -8/Garrison | Build established: Scavenger-Mutant 8368 | -8/Garrison | Triggered checkpoint 8474 | -8/Garrison | Discovered new exit (range 12) 8580 | -8/Garrison | Triggered checkpoint 8628 | -8/Garrison | Garrison Relay disabled 8926 | -8/Garrison | Learned Factory security intel 8996 | -8/Garrison | Triggered checkpoint 9060 | -8/Garrison | Expanded RIF knowledge: Robot Detection 9110 | -8/Garrison | Discovered new exit (range 12) 9128 | -8/Garrison | Entered Factory 9128 | -7/Factory | Evolved 2 slots: Utility x2 9129 | -7/Factory | Loaded intel: 86 trap records 9169 | -7/Factory | Build established: Tank 9553 | -7/Factory | Build established: Gunner 9700 | -7/Factory | P-60 Hacker assimilated allied Guardian 4a 9928 | -7/Factory | First assault squad dispatched 9950 | -7/Factory | Identified exit to Garrison 9950 | -7/Factory | Entered Garrison 9968 | -7/Garrison | Triggered checkpoint 9999 | -7/Garrison | Garrison Relay disabled 10154 | -7/Garrison | Triggered checkpoint 10323 | -7/Garrison | Discovered new exit (range 11) 10382 | -7/Garrison | Triggered checkpoint 10656 | -7/Garrison | Triggered checkpoint 10860 | -7/Garrison | Discovered new exit (range 10) 10892 | -7/Garrison | Triggered checkpoint 11020 | -7/Garrison | Triggered checkpoint 11074 | -7/Garrison | Lost 4 parts (2u2w) 11104 | -7/Garrison | Triggered checkpoint 11174 | -7/Garrison | Garrison Relay disabled 11332 | -7/Garrison | Build established: Scavenger-Gunner 11399 | -7/Garrison | Discovered new exit (range 10) 11421 | -7/Garrison | Expanded RIF knowledge: Program Shield 11439 | -7/Garrison | Entered Factory 11576 | -7/Factory | Discovered new exit (range 7) 11598 | -7/Factory | Identified exit to Factory 12232 | -7/Factory | Build established: Bothacker-Gunner 12243 | -7/Factory | Discovered new exit (range 16) 12406 | -7/Factory | Repaired Imp. Heavy Treads 12468 | -7/Factory | Identified exit to Storage 12677 | -7/Factory | Build established: Hacker-Gunner 12845 | -7/Factory | Identified exit to Lower Caves 13234 | -7/Factory | Build established: Gunner 13542 | -7/Factory | Entered Lower Caves 13542 | -7/Lower Caves | Accompanied by 3 allies 13562 | -7/Lower Caves | Learned 8 Factory zone layouts 13671 | -7/Lower Caves | Ambushed by wild Derelicts 13793 | -7/Lower Caves | Attacked by a delusional Derelict stockpiling Unaware 14116 | -7/Lower Caves | Build established: Commander-Gunner 14169 | -7/Lower Caves | Encountered a Warlord checkpoint 14239 | -7/Lower Caves | Spotted B-75 Beast 14253 | -7/Lower Caves | Allies destroyed B-75 Beast 14277 | -7/Lower Caves | Learned location of 2 exits from Factory 14322 | -7/Lower Caves | Learned Factory security intel 14610 | -7/Lower Caves | Build established: Gunner 14629 | -7/Lower Caves | Attracted the attention of an 0b10 outpost 14679 | -7/Lower Caves | Lost 3 allies 14803 | -7/Lower Caves | Discovered new exit (range 8) 15057 | -7/Lower Caves | Found Alien Artifact 15188 | -7/Lower Caves | Identified exit to Lower Caves 15190 | -7/Lower Caves | Entered another Lower Caves area 15190 | -7/Lower Caves | Accompanied by 1 ally 15242 | -7/Lower Caves | Discovered exit to Factory (range 13) 15402 | -7/Lower Caves | Build established: Scavenger-Skirmisher 15959 | -7/Lower Caves | Attracted the attention of an 0b10 checkpoint 16260 | -7/Lower Caves | Spotted B-75 Beast 16300 | -7/Lower Caves | Discovered new exit (range 6) 16316 | -7/Lower Caves | Identified exit to Data Miner 16388 | -7/Lower Caves | Encountered a Warlord checkpoint 16897 | -7/Lower Caves | Entered Data Miner 16897 | -7/Data Miner | Discovered new exit (range 6) 16929 | -7/Data Miner | Met Data Miner 16979 | -7/Data Miner | Learned location of Section 7 (-2) 16979 | -7/Data Miner | Acquired the access code to Warlord's prototype stash 17002 | -7/Data Miner | Received God Mode back door access code from Data Miner 17042 | -7/Data Miner | Identified exit to Proximity Caves 17045 | -7/Data Miner | Entered Proximity Caves 17109 | -6/Proximity Caves | Spotted B-75 Beast 17153 | -6/Proximity Caves | Identified Dimensional Node Initializer 17153 | -6/Proximity Caves | Initialized slip node 17173 | -6/Proximity Caves | Core integrity fell below 50% 17753 | -6/Proximity Caves | Assimilated ARC 5a with formatsys_deep 17967 | -6/Proximity Caves | Learned Factory emergency access door positions 17975 | -6/Proximity Caves | Learned Factory emergency access door positions 18219 | -6/Proximity Caves | Discovered exit to Factory (range 16) 18349 | -6/Proximity Caves | Entered Factory 18349 | -6/Factory | Accompanied by 1 ally 18349 | -6/Factory | Evolved 2 slots: Power x1, Propulsion x1 18350 | -6/Factory | Identified exit to Factory 18581 | -6/Factory | Lost 3 allies 18867 | -6/Factory | Repaired Imp. Heavy Treads 18949 | -6/Factory | Identified exit to Garrison 18955 | -6/Factory | Entered Garrison 18955 | -6/Garrison | Accompanied by 1 ally 18982 | -6/Garrison | Expanded RIF knowledge: Code Merge 19074 | -6/Garrison | Triggered checkpoint 19187 | -6/Garrison | Spotted B-75 Beast 19224 | -6/Garrison | Destroyed B-75 Beast 19288 | -6/Garrison | Triggered checkpoint 19291 | -6/Garrison | Build established: Derelict-Gunner 19346 | -6/Garrison | Triggered checkpoint 19390 | -6/Garrison | Lost 3 parts (1p1n1w) 19519 | -6/Garrison | Garrison Relay disabled 19563 | -6/Garrison | Discovered new exit (range 15) 19588 | -6/Garrison | Discovered new exit (range 38) 19588 | -6/Garrison | Discovered new exit (range 80) 19588 | -6/Garrison | Discovered new exit (range 7) 19767 | -6/Garrison | Build established: Scavenger-Gunner 19991 | -6/Garrison | Found embedded Infiltrators 20338 | -6/Garrison | Entered Factory 20338 | -6/Factory | Accompanied by 2 allies 20385 | -6/Factory | Build established: Bothacker-Gunner 20667 | -6/Factory | Identified exit to Garrison 20667 | -6/Factory | Entered Garrison 20745 | -6/Garrison | Heavy support dispatched to Factory 20752 | -6/Garrison | Triggered checkpoint 20804 | -6/Garrison | Garrison Relay disabled 20879 | -6/Garrison | Heavy support dispatched to Factory 20906 | -6/Garrison | Expanded RIF knowledge: Patrol Navigation 21018 | -6/Garrison | Triggered checkpoint 21076 | -6/Garrison | Triggered checkpoint 21122 | -6/Garrison | Triggered checkpoint 21167 | -6/Garrison | Triggered checkpoint 21456 | -6/Garrison | Discovered exit to Factory (range 13) 21521 | -6/Garrison | Triggered checkpoint 21598 | -6/Garrison | Garrison Relay disabled 21730 | -6/Garrison | Discovered exit to Factory (range 14) 21818 | -6/Garrison | Spotted B-75 Beast 21852 | -6/Garrison | Destroyed B-75 Beast 21970 | -6/Garrison | Triggered checkpoint 22053 | -6/Garrison | Rescued a captive Derelict 22054 | -6/Garrison | Rescued a captive Derelict 22168 | -6/Garrison | Discovered exit to Factory (range 12) 22180 | -6/Garrison | Expanded RIF knowledge: Hotswap 22220 | -6/Garrison | Triggered checkpoint 22488 | -6/Garrison | H-XX Assembler disabled 22605 | -6/Garrison | Entered Factory 22605 | -5/Factory | Accompanied by 3 allies 22605 | -5/Factory | Evolved 2 slots: Utility x2 22750 | -5/Factory | Discovered new exit (range 5) 22785 | -5/Factory | Build established: Gunner 23999 | -5/Factory | Fabricated Imp. Heavy Treads (x2) 24064 | -5/Factory | Fabricated M-28 Smith (x1) 24337 | -5/Factory | Spotted B-75 Beast 24341 | -5/Factory | Identified exit to Upper Caves 24341 | -5/Factory | Identified exit to Extension 24405 | -5/Factory | First assault squad dispatched 24525 | -5/Factory | Entered Upper Caves 24866 | -5/Upper Caves | Learned Factory security intel 25456 | -5/Upper Caves | Discovered new exit (range 10) 26967 | -5/Upper Caves | Entered another Upper Caves area 27521 | -5/Upper Caves | Discovered new exit (range 9) 27562 | -5/Upper Caves | Attracted the attention of an 0b10 checkpoint 28075 | -5/Upper Caves | Build established: Tank 28415 | -5/Upper Caves | Discovered new exit (range 13) 28820 | -5/Upper Caves | Learned 12 Factory zone layouts 28844 | -5/Upper Caves | Build established: Scavenger-Tank 29158 | -5/Upper Caves | Spotted B-75 Beast 29985 | -5/Upper Caves | Entered Zhirov 29987 | -5/Zhirov | Discovered new exit (range 3) 30030 | -5/Zhirov | Met Zhirov 30105 | -5/Zhirov | Learned location of Quarantine (-2) 30105 | -5/Zhirov | Learned location of Testing (-3) 30105 | -5/Zhirov | Learned location of Command (-1) 30120 | -5/Zhirov | Zhirov requested help retrieving the SGEMP Prototype 30156 | -5/Zhirov | Found Alien Artifact 30156 | -5/Zhirov | Identified Integrated Reactor 30156 | -5/Zhirov | Installed Integrated Reactor, increased core energy generation (+10) 30275 | -5/Zhirov | Found Alien Artifact 30368 | -5/Zhirov | Entered Proximity Caves 30499 | -4/Proximity Caves | Build established: Tank 30965 | -4/Proximity Caves | Learned Research interactive machine intel 31169 | -4/Proximity Caves | Discovered new exit (range 10) 32159 | -4/Proximity Caves | Learned 4 Research zone layouts 32481 | -4/Proximity Caves | Entered Factory 32481 | -4/Factory | Evolved 2 slots: Propulsion x2 32482 | -4/Factory | Identified exit to Research 32790 | -4/Factory | Garrison activated, responded to threat 32978 | -4/Factory | Destroyed 8 combat bots 33323 | -4/Factory | Fabricated Imp. Heavy Treads? 33481 | -4/Factory | First assault squad dispatched 33485 | -4/Factory | Build established: Scavenger-Tank 33549 | -4/Factory | Repaired F-cell Engine 33756 | -4/Factory | Identified Transdimensional Reconstructor 33859 | -4/Factory | Garrison activated, responded to threat 33994 | -4/Factory | Identified exit to Garrison 34007 | -4/Factory | Entered Garrison 34146 | -4/Garrison | Build established: Tank 34171 | -4/Garrison | Garrison Relay disabled 34292 | -4/Garrison | Spotted B-86 Titan 34338 | -4/Garrison | Destroyed 7 combat bots 34369 | -4/Garrison | Destroyed B-86 Titan 34421 | -4/Garrison | Lost 8 parts (2n3u3w) 34435 | -4/Garrison | Destroyed 8 combat bots 34511 | -4/Garrison | Triggered checkpoint 34657 | -4/Garrison | Spotted B-86 Titan 34709 | -4/Garrison | Destroyed B-86 Titan 34723 | -4/Garrison | Lost 11 parts (2p4n3u2w) 34856 | -4/Garrison | Expanded RIF knowledge: Autoassimilate 34989 | -4/Garrison | Discovered exit to Research (range 8) 35060 | -4/Garrison | Triggered checkpoint 35095 | -4/Garrison | Garrison Relay disabled 35238 | -4/Garrison | Triggered checkpoint 35306 | -4/Garrison | Triggered checkpoint 35317 | -4/Garrison | Discovered exit to Research (range 10) 35333 | -4/Garrison | Entered Research 35333 | -3/Research | Accompanied by 2 allies 35333 | -3/Research | Evolved 2 slots: Utility x2 35334 | -3/Research | Identified exit to Research 35335 | -3/Research | Loaded intel: 44 interactive machine locations 35405 | -3/Research | Build established: Botlord-Gunner 35583 | -3/Research | First assault squad dispatched 35697 | -3/Research | Identified exit to Garrison 35697 | -3/Research | Entered Garrison 35752 | -3/Garrison | Triggered checkpoint 35807 | -3/Garrison | Garrison Relay disabled 36064 | -3/Garrison | Expanded RIF knowledge: Watcher Feeds 36122 | -3/Garrison | Triggered checkpoint 36129 | -3/Garrison | Spotted B-86 Titan 36140 | -3/Garrison | Triggered checkpoint 36149 | -3/Garrison | Hijacked Titan 8a control node with streamctrl_high 36184 | -3/Garrison | Triggered checkpoint 36396 | -3/Garrison | Triggered checkpoint 36456 | -3/Garrison | Garrison Relay disabled 36556 | -3/Garrison | Discovered exit to Research (range 12) 36580 | -3/Garrison | Found Gamma Bomb Array 36585 | -3/Garrison | Found Gamma Bomb Array 36762 | -3/Garrison | Discovered exit to Research (range 11) 36844 | -3/Garrison | Expanded RIF knowledge: Coupler Efficiency 36932 | -3/Garrison | Entered Research 36932 | -2/Research | Evolved 2 slots: Power x1, Utility x1 37071 | -2/Research | Found Fusion Bomb Launcher 37167 | -2/Research | Found Heavy Servo Lattice 37170 | -2/Research | Found Heavy Servo Lattice 37318 | -2/Research | Identified exit to Garrison 37375 | -2/Research | Garrison activated, responded to threat 37513 | -2/Research | Destroyed 13 combat bots 37682 | -2/Research | First assault squad dispatched 37823 | -2/Research | Destroyed 14 combat bots 37956 | -2/Research | High security lockdown imminent 38034 | -2/Research | Discovered new exit (range 17) 38036 | -2/Research | High security lockdown engaged 38049 | -2/Research | Destroyed 10 combat bots 38077 | -2/Research | Crushed by falling debris 38077 | -2/Research | System corruption reached 10% 38123 | -2/Research | Entered Access 38123 | -1/Access | Evolved 2 slots: Utility x2 38153 | -1/Access | Lost 4 parts (4u) 38503 | -1/Access | Destroyed 7 combat bots 38519 | -1/Access | Spotted B-99 Colossus 38526 | -1/Access | Autoassimilated Colossus 10a with RIF 38587 | -1/Access | Garrison activated, responded to threat 38800 | -1/Access | High security lockdown imminent 38880 | -1/Access | High security lockdown engaged 38990 | -1/Access | Destroyed 8 combat bots 39053 | -1/Access | Found Hvy. Reflective Plating 39089 | -1/Access | Found Prototype Ballistic Gun 39089 | -1/Access | Identified Multirail 39152 | -1/Access | Destroyed 14 combat bots 39167 | -1/Access | Spotted Investigator 39167 | -1/Access | Scanned by Researcher 39171 | -1/Access | Destroyed Investigator 39192 | -1/Access | Spotted Executioner 39203 | -1/Access | System corruption reached 10% 39225 | -1/Access | Destroyed Executioner 39243 | -1/Access | Lost 4 parts (1n2u1w) 39251 | -1/Access | Spotted Executioner 39251 | -1/Access | Spotted Striker 39265 | -1/Access | Warped through subspace 39271 | -1/Access | Destroyed 17 combat bots 39319 | -1/Access | Lost 3 parts (1p2u) 39336 | -1/Access | Garrison activated, responded to threat 39369 | -1/Access | Spotted Executioner 39388 | -1/Access | System corruption reached 30% 39424 | -1/Access | Destroyed Executioner 39425 | -1/Access | Lost 5 parts (1p2u2w) 39471 | -1/Access | Found Prototype Processor 39471 | -1/Access | Identified Exp. Signal Interpreter 39478 | -1/Access | Spotted Striker 39478 | -1/Access | Spotted Striker 39481 | -1/Access | Spotted Executioner 39482 | -1/Access | Core integrity fell below 50% 39488 | -1/Access | Core integrity fell below 20% 39491 | -1/Access | Destroyed by P-80 Master with Gamma Rifle Last Messages --------------- 39487_ Acquired 3 matter. 39487_ System corrupted: Heat flow error (+238). 39487_ P-80 Master resets X-87 Electro, system corruption cleaned. 39487_ Lrn. Tractor Beam destroyed. 39487_ Critical hit (Blast). 39487_ P-80 Master resets P-80 Master, system corruption cleaned. 39487_ P-80 Master resets I-47 Archangel, system corruption cleaned. 39488_ P-80 Master resets P-80 Master, system corruption cleaned. 39488_ P-80 Master resets X-87 Electro, system corruption cleaned. 39488_ K-01 Serf collects debris. 39489_ Adv. Remote Datajack destroyed. 39489_ Slammed into G-73 Enforcer. 39489_ Destabilizing: System corrupted (+2). 39490_ Adv. Coolant Injector destroyed. 39490_ Relay Coupler [Behemoth] destroyed. 39490_ Adv. Remote Datajack destroyed. 39490_ Rnf. Quantum Reactor destroyed. 39490_ Imp. Datajack destroyed. 39490_ P-80 Master resets P-80 Master, system corruption cleaned. 39491_ Adv. Targeting Computer destroyed. Map ----- +----------------------------------------------------+ | #???????????????????????????????????????? | | #???????????????????????????????????????? | | #???????????????????????????????????????? | | #???????????????????????????????????????? | | ##########???????????????????????????????????????? | | ?????????????????????????????????????????????????? | | ?????????????????????????????????????????????????? | | ?????????????????????????????????????????????????? | | ?????????????????????????????????????????????????? | | ?????????????????????????????????????????????????? | | ?????????????????????????????????????????????????? | | ?????????????????????????????????????????????????? | | ????????????????????????????#######??????????????? | | ????????????????????????????# #??????????????? | | ????????????????????????????# #??????????????? | | ????????????????????????????# #??????????????? | | ????????????????????????????# #??????????????? | | ????????????????????????##### #??????????????? | | ??#????????????????????## # #??????????????? | | # #????????????????????? + #??????????????? | | # #?????????????????????# # #??????????????? | | #?????????????????????# # #??????????????? | | ###????????######???????# x # #??????????????? | | #??????????# #???????# p#% #??????????????? | | #??????????# #???????#pKx/ #??????????????? | | ???????????#|!] #???????#@K #######??????????????? | | ############!! #???????#pgg#????????????????????? | | [%%/%!= #??????##Egp##???????????????????? | | *[*#%! #??????#p pg #???????????????????? | | !=#= #??????# "% #???????????????????? | | # !/ #????? /igTi #???????????????????? | | ######## #![= #???? # %kp#???????????????????? | | #??????# ##/###??? # ! #???????????????????? | | #??????# ##]#???? ?### ###???????????????????? | | #??????# ## #???####???# ######????????????????? | | #????###+##+############p## ###### #??????? | | #????# + g w m % C #??????? | | #????# ####+#####+## #######+##???????? | | #????# " #?# ## ##????????????????? | | #????# """ #?# ## #?????????????????? | | #????#* """ #?# ! " ## #?????????????????? | | #????# " #?# """ ## #?????????????????? | | #????# ! #?# """ ## #?????????????????? | | ?????# #?# " ## ?????????????????? | | ?????# #?# ! ## ?????????????????? | | ????????#####+###?# ## ?????????????????? | | ??????????????????############ ?????????????????? | | ?????????????????????????????? ?????????????????? | | ?????????????????????????????? ?????????????????? | | ?????????????????????????????? ?????????????????? | +----------------------------------------------------+ Best States ------------- Heat Dissipation 140 Coolant Potential 145 Energy Generation 75 Energy Capacity 1240 Matter Stores 300 Matter Capacity 300 Sight Range 22 Robot Scan Range 15 Terrain Scan Density 10 Jamming Range 14 Armor Coverage 1650 Resistance: KI 30 Resistance: TH 30 Core Shielding 30 Propulsion Shielding 66 Weapon Cycling 25 Phase Shifting 15 Evasion (%) 55 Targeting Accuracy 16 Melee Accuracy 6 Target Analysis 12 Core Analysis 6 Recoil Reduction 6 Offensive Hacking 20 Relay Coupler Types 3 Relay Coupler Value 92 Authchip Count 2 Item Schematics ----------------- Mak. System Restoration Module | -8/Materials | Scanalyzed Arm. Treads | -8/Materials | Scanalyzed Combat Drone Bay | -7/Data Miner | Free Lgt. Regenerative Plating | -7/Data Miner | Free Biomechanical Wings | -7/Data Miner | Free Exp. Weapon Shielding | -7/Data Miner | Free Com. Ion Cannon | -7/Data Miner | Free Cmb. Gravmag System | -7/Data Miner | Free Adv. System Restoration Module | -7/Data Miner | Free Imp. Arc Projector | -7/Data Miner | Free Force Field | -7/Data Miner | Free Imp. Cloaking Device | -7/Data Miner | Free Micro-nuke Launcher | -7/Data Miner | Free Hvy. Missile Launcher | -6/Factory | Scanalyzed Imp. Heavy Treads | -6/Factory | Scanalyzed Imp. Remote Datajack | -5/Factory | Scanalyzed Assault Drone Bay | -5/Zhirov | Free Exp. Heat Sink | -5/Zhirov | Free Exp. Optical Array | -5/Zhirov | Free Imp. Arc Thrower | -5/Zhirov | Free Mak. Transmission Jammer | -4/Factory | Scanalyzed Enh. Gauss Cannon | -4/Factory | Scanalyzed Robot Schematics ------------------ A-15 Conveyor | -7/Data Miner | Free L-41 Fighter | -7/Data Miner | Free M-28 Smith | -7/Data Miner | Free W-25 Informer | -7/Data Miner | Free R-10 Processor | -7/Data Miner | Free H-66 Slayer | -7/Data Miner | Free Fabricated ------------ Imp. Heavy Treads | x2 | -5/Factory | Authchip M-28 Smith | x1 | -5/Factory | Authchip Imp. Heavy Treads | x2 | -4/Factory Alien Tech Used ----------------- Dimensional Node Initializer Integrated Reactor Transdimensional Reconstructor Achievements -------------- None Challenges ------------ None Game ------ Seed LargeOmegaFacilitator Manual? 0 Play Time 03:44:04 Cumulative 1457.0 hours Start 2024.01.15 @ 16:17:32 End 2024.01.17 @ 03:32:16 Sessions 5 Manual Loads 0 Difficulty Rogue Special Mode None Game No. 1018 Rogue 1014 Adventurer 4 Explorer 0 Win Type - Total 177 Types 132/11/11/7/2/1/3/6/4 Lore% 95 Gallery% 98 Achievement% 98 Wizard Run 0 Options --------- ASCII 0 Keyboard 1 Movement Vi Keybinds 0 Fullscreen 0 Font 20/X11 Map View 76x50 Zoom Use 0% Tactical HUD 1 Map Filters NONE Filters NONE Steam 1 RUN: 2caeaf3f-7855-4457-b1ff-ba80a6534929